bitfinex/quotes_ETHUSD_20250708
["timestamp","ask_amount","ask_price","bid_price","bid_amount"]
[1751994688716,13.5482,2611.2,2611.1,0.001]
[1751994688916,13.357,2611.2,2611.1,0.001]
[1751994690245,17.18665686,2611.2,2611.1,0.001]
[1751994690747,13.357,2611.2,2611.1,0.001]
[1751994691551,13.283,2611.3,2611.1,0.001]
[1751994692059,13.283,2611.3,2611.2,0.1912]
[1751994692562,0.1912,2611.7,2611.2,0.1912]
[1751994692718,10.46311177,2611.6,2611.2,0.1912]
[1751994692921,4.02019176,2611.7,2611.2,0.1912]
[1751994693133,4.02019176,2611.7,2611.2,4.02078118]
[1751994693134,6.8222,2611.7,2611.2,4.02078118]
[1751994693338,10.45995067,2611.7,2611.1,3.83076643]
[1751994693535,10.45995067,2611.7,2611.4,0.1912]
[1751994694176,6.631,2611.7,2611.4,0.1912]
[1751994694356,10.4599338,2611.7,2611.4,0.1912]
[1751994694954,0.1912,2611.9,2611.4,0.1912]
[1751994695134,3.82859751,2612.0,2611.4,3.82924825]
[1751994695338,6.619,2611.9,2611.6,0.1912]
[1751994695535,0.1912,2612.0,2611.6,0.1912]
[1751994695735,6.614,2612.1,2611.7,3.8288668]
[1751994696041,0.1912,2612.2,2611.8,0.1912]
[1751994696244,6.613,2612.2,2612.0,0.1912]
[1751994696430,10.4412737,2612.2,2612.0,0.1912]
[1751994698924,3.8282737,2612.2,2612.0,0.1912]
[1751994699548,0.1912,2612.4,2612.0,0.1912]
[1751994699768,2.18528771,2614.3,2612.1,0.03828337]
[1751994699769,0.7995,2613.0,2612.1,0.03828337]
[1751994699930,0.7995,2613.0,2611.8,0.8139]
[1751994699931,3.827193,2612.9,2612.4,3.82783136]
[1751994700126,3.82697635,2613.1,2612.6,4.01879363]
[1751994700333,4.01800841,2613.2,2612.7,3.82743181]
[1751994700538,10.61099097,2613.2,2612.8,0.1912]
[1751994700764,1.0,2613.3,2612.6,0.03827604]
[1751994701061,4.82662772,2613.3,2612.9,0.1912]
[1751994701233,11.41962772,2613.3,2612.9,0.1912]
[1751994702244,1.0,2613.3,2612.9,4.01834915]
[1751994702444,1.0,2613.3,2612.9,0.40183491]
[1751994702668,1.0,2613.3,2613.2,4.01792585]
[1751994703739,1.0,2613.3,2613.2,4.8296931]
[1751994703941,3.82500664,2614.4,2613.2,4.8296931]
[1751994703942,0.0840314,2614.8,2613.9,0.55]
[1751994704140,0.0840314,2614.8,2613.6,10.0]
[1751994704141,0.0840314,2614.8,2614.7,0.1912]
[1751994704372,0.0840314,2614.8,2614.4,3.82485078]
[1751994704553,0.0840314,2614.8,2614.6,0.1912]
[1751994705372,0.0840314,2614.8,2614.7,3.82453053]
[1751994705550,0.0840314,2614.8,2614.7,0.1912]
[1751994706073,0.0840314,2614.8,2614.3,3.82508078]
[1751994706074,3.90841567,2614.8,2614.6,0.1912]
[1751994706247,4.2154034,2614.7,2614.0,10.41547302]
[1751994706444,6.59,2614.6,2613.6,3.82606317]
[1751994706779,6.59,2614.6,2613.3,6.59]
[1751994706780,0.7631,2614.1,2613.3,6.59]
[1751994706985,3.82586781,2613.8,2613.3,6.59]
[1751994707282,0.39084157,2614.7,2613.4,0.03826432]
[1751994707471,3.82556121,2614.0,2613.4,3.86461506]
[1751994707791,3.82570861,2613.9,2613.4,0.03826432]
[1751994708098,3.82570861,2613.9,2613.3,3.8265054]
[1751994708099,3.82621171,2613.6,2613.2,0.7932]
[1751994708256,3.82646051,2613.4,2612.8,3.82725017]
[1751994708459,3.82576355,2613.9,2612.8,3.8273014]
[1751994708460,3.82664208,2613.3,2612.8,3.8273014]
[1751994708646,3.8264089,2613.5,2612.9,0.03827165]
[1751994708847,0.7631,2613.7,2612.7,6.59]
[1751994708848,3.82667731,2613.3,2612.7,6.59]
[1751994709050,0.7631,2613.7,2612.8,3.0]
[1751994709051,0.45895089,2613.5,2612.8,3.0]
[1751994709249,4.58914157,2613.7,2612.8,3.0]
[1751994709250,0.7631,2613.7,2612.8,3.0]
[1751994709465,3.82716521,2612.9,2612.4,6.59]
[1751994709691,3.82726395,2612.9,2612.3,3.82803614]
[1751994709860,3.82726395,2612.9,2612.4,1.30240361]
[1751994710057,6.59,2613.4,2612.4,5.13029524]
[1751994710058,3.82704516,2613.0,2612.4,5.13029524]
[1751994710259,3.82719405,2612.9,2612.4,1.30240361]
[1751994710459,6.59,2613.4,2612.4,1.30240361]
[1751994710791,6.59,2613.4,2611.9,6.589]
[1751994710792,3.827424,2612.8,2611.9,6.589]
[1751994710953,3.82761712,2612.6,2612.1,3.82822683]
[1751994711154,3.82782005,2612.5,2612.0,7.376]
[1751994711353,3.82782005,2612.5,2612.0,11.20446234]
[1751994711891,3.82782005,2612.5,2612.1,1.12044623]
[1751994712095,3.82782005,2612.5,2611.3,7.74894311]
[1751994712096,0.7755,2612.8,2611.2,0.7726]
[1751994712251,0.7755,2612.8,2611.4,3.82936355]
[1751994712252,3.82835983,2612.1,2611.4,3.82936355]
[1751994712596,3.82760468,2612.6,2611.6,3.82898347]
[1751994712597,3.82828878,2612.2,2611.6,3.82898347]
[1751994712755,3.82803096,2612.4,2611.8,3.82873316]
[1751994713093,4.60293967,2612.8,2611.5,11.46377115]
[1751994713094,3.82841614,2612.1,2611.5,11.46377115]
[1751994713269,3.82841614,2612.1,2611.5,4.87477115]
[1751994713799,3.8280873,2612.3,2611.5,1.04566587]
[1751994714083,3.8280873,2612.3,2611.7,3.82892368]
[1751994714264,0.7755,2612.8,2611.8,0.03828777]
[1751994714464,3.82760219,2612.7,2612.0,3.82838536]
[1751994714673,3.82762967,2612.6,2612.0,10.45567019]
[1751994714988,3.8276145,2612.6,2612.1,3.82828992]
[1751994715183,3.82783631,2612.5,2612.0,3.86670637]
[1751994715387,3.82687229,2613.1,2612.0,1.54587776]
[1751994715587,3.82719085,2612.9,2612.4,3.82780807]
[1751994715887,3.82709654,2613.0,2612.4,3.82780807]
[1751994716180,3.82720789,2612.9,2611.9,11.20911201]
[1751994716401,3.82696231,2613.1,2612.6,0.1912]
[1751994716402,3.82733139,2612.8,2612.6,0.1912]
[1751994716771,0.1912,2613.1,2612.6,0.1912]
[1751994716970,4.01810015,2613.1,2612.6,0.1912]
[1751994717188,0.47698002,2613.1,2611.9,0.7905]
[1751994717354,0.1912,2612.5,2612.0,0.1912]
[1751994717558,0.1912,2612.5,2612.0,4.01965253]
[1751994717559,4.01903462,2612.5,2612.0,4.01965253]
[1751994718285,0.1912,2612.5,2612.1,3.8283072]
[1751994718455,0.47698002,2613.1,2612.3,0.1912]
[1751994718456,0.1912,2612.8,2612.3,0.1912]
[1751994718654,3.82784466,2612.5,2612.3,0.1912]
[1751994718888,4.57951359,2612.5,2611.4,0.7905]
[1751994719189,3.82850872,2612.0,2611.8,0.1912]
[1751994719694,3.82863049,2611.9,2611.8,0.1912]
[1751994719860,0.1912,2611.9,2611.4,0.1912]
[1751994720055,3.82949082,2611.4,2611.1,0.001]
[1751994720257,0.1912,2611.6,2611.1,0.1922]
[1751994720586,3.82889882,2611.8,2611.3,4.02070967]
[1751994720792,0.8126,2612.1,2611.6,3.82897394]
[1751994720793,3.8283886,2612.1,2611.6,3.82897394]
[1751994720966,3.82870274,2611.9,2611.7,0.1912]
[1751994721156,3.8282036,2612.2,2611.7,4.02006418]
[1751994721356,3.82835476,2612.1,2611.7,0.1912]
[1751994721580,3.8282638,2612.2,2611.7,4.02012111]
[1751994721779,0.1912,2612.3,2611.8,3.82872573]
[1751994721780,4.01931556,2612.3,2611.8,3.82872573]
[1751994721984,4.6399711,2612.8,2612.1,3.8282285]
[1751994722309,4.6399711,2612.8,2612.2,0.1912]
[1751994722310,0.1912,2612.6,2612.2,0.1912]
[1751994722455,0.1912,2612.6,2612.1,4.01952863]
[1751994722456,0.1912,2612.5,2612.1,4.01952863]
[1751994722661,11.42016317,2612.8,2612.3,4.01915485]
[1751994722959,13.02265557,2613.3,2612.4,3.82789771]
[1751994722960,0.7664,2613.1,2612.4,3.82789771]
[1751994723190,3.82658748,2613.3,2612.6,0.1912]
[1751994723360,0.7664,2613.8,2612.9,0.1912]
[1751994723361,4.01765142,2613.4,2612.9,0.1912]
[1751994723568,3.82668002,2613.3,2612.9,0.1912]
[1751994723868,17.00427643,2613.6,2613.0,4.6210311]
[1751994724072,13.178,2613.6,2613.3,0.1912]
[1751994724385,13.3692,2613.6,2613.1,0.1912]
[1751994724555,3.82628658,2613.5,2613.1,0.1912]
[1751994724756,13.3692,2613.6,2613.1,0.1912]
[1751994725191,17.00421677,2613.6,2613.1,3.8267665]
[1751994725391,3.82643299,2613.4,2613.3,0.1912]
[1751994725598,13.178,2613.6,2612.7,0.7558]
[1751994725599,3.82690521,2613.1,2612.7,0.7558]
[1751994725797,3.82690521,2613.1,2613.0,0.1912]
[1751994726165,0.1912,2613.5,2613.0,0.1912]
[1751994726368,3.8266854,2613.3,2613.0,0.1912]
[1751994726973,4.01753982,2613.5,2613.0,0.1912]
[1751994726974,0.1912,2613.5,2613.0,0.1912]
[1751994727203,4.018196,2613.1,2612.7,0.1912]
[1751994727364,0.1912,2613.1,2612.7,0.1912]
[1751994727564,4.01808125,2613.1,2612.7,0.1912]
[1751994728096,3.82687953,2613.1,2612.6,3.82759969]
[1751994728283,3.82687953,2613.1,2612.8,0.1912]
[1751994728679,0.1912,2613.3,2612.8,0.1912]
[1751994728972,13.176,2613.4,2613.0,4.809003]
[1751994729174,13.176,2613.4,2613.3,0.1912]
[1751994730474,13.176,2613.4,2613.3,4.01777942]
[1751994730674,13.176,2613.4,2613.3,0.1912]
[1751994731086,0.002,2613.6,2613.3,0.1912]
[1751994731301,13.175,2613.6,2612.5,0.8281]
[1751994731598,4.01765471,2613.4,2612.9,0.1912]
[1751994731797,3.82657942,2613.3,2612.9,0.1912]
[1751994732007,16.99972585,2613.2,2612.9,0.1912]
[1751994732187,16.99981632,2613.2,2612.9,0.1912]
[1751994732378,16.99981632,2613.2,2612.9,4.01827698]
[1751994732379,13.173,2613.2,2612.9,4.01827698]
[1751994733198,13.173,2613.2,2612.9,0.1912]
[1751994733494,16.99974053,2613.2,2612.9,0.1912]
[1751994733803,13.173,2613.2,2612.9,0.1912]
[1751994734594,3.82701875,2613.0,2612.9,0.1912]
[1751994734901,3.82731847,2612.8,2612.7,0.1912]
[1751994735075,16.99831847,2612.8,2612.7,0.1912]
[1751994735276,13.171,2612.8,2612.7,0.1912]
[1751994735472,16.99831169,2612.8,2612.7,0.1912]
[1751994735803,3.82789943,2612.4,2612.1,0.7777]
[1751994736006,16.99804425,2612.3,2612.1,0.9689]
[1751994736170,3.82819079,2612.2,2612.1,0.1912]
[1751994736376,3.82819079,2612.2,2611.8,1.67174369]
[1751994736377,3.82835723,2612.1,2611.9,1.33929913]
[1751994736708,3.82789771,2612.4,2612.0,1.3393006]
[1751994736905,13.169,2612.3,2612.1,1.3393006]
[1751994737499,13.169,2612.5,2612.4,3.82789771]
[1751994737695,13.169,2612.7,2612.4,3.82789771]
[1751994737875,13.169,2612.7,2612.4,4.01909771]
[1751994738079,13.169,2612.7,2612.6,0.1912]
[1751994738609,13.169,2612.7,2612.6,4.01880468]
[1751994738928,13.168,2613.3,2612.9,0.8089]
[1751994739117,13.168,2613.4,2613.1,3.82681789]
[1751994739316,13.168,2613.4,2613.1,0.1912]
[1751994739478,16.99443737,2613.4,2613.1,0.1912]
[1751994739812,13.168,2613.4,2613.1,0.1912]
[1751994740256,0.002,2613.6,2613.5,3.82628658]
[1751994740540,0.002,2613.6,2613.3,0.1912]
[1751994740541,0.002,2613.6,2613.3,3.82646921]
[1751994740749,0.002,2613.6,2613.3,4.01766921]
[1751994740961,0.002,2613.6,2613.1,4.30952478]
[1751994740962,0.002,2613.6,2613.1,0.48271167]
[1751994741240,0.002,2613.6,2613.5,0.1912]
[1751994741711,3.82814018,2613.6,2613.5,0.1912]
[1751994742035,3.82628658,2613.5,2613.3,0.1912]
[1751994742238,0.002,2613.6,2613.3,0.1912]
[1751994742441,0.002,2613.6,2613.5,3.82628658]
[1751994742613,0.002,2613.6,2613.5,4.7827681]
[1751994743014,0.002,2613.6,2613.2,3.82666929]
[1751994743243,0.002,2613.6,2613.3,0.1912]
[1751994743407,0.002,2613.6,2613.5,3.82628658]
[1751994743613,0.002,2613.6,2613.5,4.01748658]
[1751994743853,0.002,2613.6,2613.5,4.81878658]
[1751994744033,0.002,2613.6,2613.5,5.72156912]
[1751994744243,3.82814018,2613.6,2613.1,2.44804369]
[1751994744552,0.002,2613.6,2613.4,3.82643118]
[1751994744846,3.82820548,2613.6,2613.4,6.58]
[1751994745049,0.002,2613.6,2613.3,6.58]
[1751994745250,3.8281647,2613.6,2613.1,3.82679564]
[1751994745540,3.8281647,2613.6,2613.2,8.68267298]
[1751994745752,0.002,2613.6,2613.3,1.33730131]
[1751994746108,0.002,2613.6,2613.2,11.17208407]
[1751994746509,0.002,2613.6,2613.2,7.34537167]
[1751994746933,3.82815058,2613.6,2613.2,7.34537167]
[1751994747240,0.002,2613.6,2613.2,7.34537167]
[1751994747448,0.002,2613.6,2613.3,7.69621989]
[1751994747850,0.002,2613.6,2613.3,1.11721989]
[1751994748016,3.82821202,2613.6,2613.4,6.579]
[1751994748217,0.002,2613.6,2613.4,6.579]
[1751994748521,3.82816847,2613.6,2613.4,6.579]
[1751994748845,0.002,2613.6,2613.4,6.578]
[1751994749050,0.002,2613.6,2613.4,7.2358]
[1751994749228,3.82628658,2613.5,2613.4,6.578]
[1751994749429,3.82821314,2613.6,2613.4,6.578]
[1751994749629,0.002,2613.6,2613.4,6.578]
[1751994750028,3.82814421,2613.6,2613.4,6.578]
[1751994750218,3.82814421,2613.6,2612.7,2.48334369]
[1751994750219,3.8266935,2613.3,2612.7,2.48334369]
[1751994750422,0.002,2613.6,2612.7,2.48334369]
[1751994750423,0.002,2613.6,2612.9,6.578]
[1751994750742,3.82665033,2613.3,2612.9,6.578]
[1751994751049,3.82677202,2613.2,2612.9,6.578]
[1751994751256,3.82693514,2613.1,2612.9,6.577]
[1751994751553,3.82665033,2613.3,2612.4,1.67174369]
[1751994751554,3.82775119,2612.5,2612.4,1.67174369]
[1751994751752,4.60182297,2612.5,2611.9,3.82850604]
[1751994751923,0.774,2612.5,2611.9,0.001]
[1751994752347,3.82798156,2612.4,2611.9,0.001]
[1751994752544,3.8280669,2612.3,2611.9,0.001]
[1751994752745,3.82817815,2612.3,2611.9,0.001]
[1751994753059,3.82820761,2612.2,2611.9,0.001]
[1751994753760,3.82814162,2612.3,2611.9,0.001]
[1751994753929,3.82731169,2612.8,2612.0,3.82836569]
[1751994754138,0.7556,2613.0,2612.0,7.7419652]
[1751994754139,3.82785305,2612.5,2612.0,7.7419652]
[1751994754335,3.82785305,2612.5,2612.3,0.1912]
[1751994754551,3.82775877,2612.5,2612.3,0.1912]
[1751994755128,3.82765971,2612.6,2612.3,0.1912]
[1751994755333,0.1912,2612.8,2612.3,0.1912]
[1751994755536,3.82731169,2612.8,2612.2,3.82811282]
[1751994755762,3.82731169,2612.8,2612.5,0.1912]
[1751994755930,16.98116981,2612.9,2612.5,0.1912]
[1751994756256,16.98116981,2612.9,2612.0,11.18356933]
[1751994756257,3.82664856,2613.3,2612.6,0.03827604]
[1751994756468,3.82664856,2613.3,2612.7,0.9837]
[1751994756762,3.82664856,2613.3,2613.0,0.1912]
[1751994757122,3.82687229,2613.1,2613.0,0.1912]
[1751994757322,3.82789822,2612.4,2612.0,0.7778]
[1751994757555,3.82789822,2612.4,2612.3,0.1912]
[1751994758424,3.82809112,2612.3,2612.1,0.1912]
[1751994758634,3.8279721,2612.4,2612.1,0.1912]
[1751994760152,4.01902232,2612.5,2612.1,0.1912]
[1751994760335,0.1912,2612.5,2612.1,0.1912]
[1751994760542,3.82806095,2612.3,2612.1,0.1912]
[1751994761057,3.82797725,2612.4,2612.1,0.1912]
[1751994762332,3.82819079,2612.2,2612.1,0.1912]
[1751994762644,3.8281121,2612.3,2611.9,0.1922]
[1751994763058,3.82820846,2612.2,2611.9,0.1922]
[1751994763386,4.0192063,2612.4,2611.9,0.1922]
[1751994763551,3.82820053,2612.2,2611.9,0.1922]
[1751994764482,4.42113631,2612.4,2611.9,4.02078164]
[1751994764683,10.40081817,2612.5,2612.0,3.82834655]
[1751994764890,10.40081817,2612.5,2612.2,3.82816755]
[1751994764891,0.1912,2612.5,2612.2,3.82816755]
[1751994765479,0.1912,2612.5,2612.2,3.8281601]
[1751994765994,4.63684228,2612.7,2612.3,0.1912]
[1751994766164,4.63684228,2612.7,2612.3,4.01923497]
[1751994766165,3.82754228,2612.7,2612.3,4.01923497]
[1751994766504,0.1912,2612.8,2612.3,4.01923497]
[1751994766505,4.01859176,2612.8,2612.3,4.01923497]
[1751994766687,0.7545,2613.0,2612.3,3.82794826]
[1751994766878,3.82718057,2612.9,2612.5,0.1912]
[1751994767062,7.97584086,2613.0,2612.5,0.1912]
[1751994767063,7.5167,2613.0,2612.5,0.1912]
[1751994767263,0.7545,2613.0,2612.6,3.82760468]
[1751994767463,0.1912,2613.2,2612.7,0.1912]
[1751994767673,10.58890157,2613.3,2612.9,0.1912]
[1751994767977,4.01790157,2613.3,2612.9,4.01834706]
[1751994768185,0.1912,2613.3,2612.9,4.01834706]
[1751994768493,0.1912,2613.3,2612.9,0.1912]
[1751994768699,0.1912,2613.7,2613.3,3.82652702]
[1751994769022,3.82561313,2614.0,2613.5,3.82621156]
[1751994769023,0.1912,2613.9,2613.5,3.82621156]
[1751994769150,4.01690271,2613.9,2613.4,3.82637175]
[1751994769353,0.1912,2613.9,2613.5,3.82628547]
[1751994769660,0.1912,2613.9,2613.4,0.1912]
[1751994769866,3.82557983,2614.0,2613.5,3.82623365]
[1751994770066,3.82557983,2614.0,2613.6,0.1912]
[1751994770306,3.82576841,2613.9,2613.6,0.1912]
[1751994770599,4.84487175,2614.1,2613.6,4.01732907]
[1751994770770,4.84487175,2614.1,2613.6,0.1912]
[1751994770771,3.8255871,2614.0,2613.6,0.1912]
[1751994771156,3.8255547,2614.0,2613.6,0.1912]
[1751994771394,4.01668483,2614.1,2613.6,4.01722249]
[1751994771611,4.01668483,2614.1,2613.3,6.60626579]
[1751994771612,0.0419311,2614.2,2613.9,0.1912]
[1751994771829,3.86725478,2614.2,2613.9,0.1912]
[1751994772336,0.0419311,2614.2,2613.9,4.01682492]
[1751994772478,0.0419311,2614.2,2614.0,0.1912]
[1751994772886,0.0419311,2614.2,2614.1,3.82540836]
[1751994773086,0.0419311,2614.2,2614.1,4.61344831]
[1751994773810,0.0419311,2614.2,2614.1,5.44414831]
[1751994773985,0.0419311,2614.2,2614.1,5.99414831]
[1751994774186,0.0419311,2614.2,2614.1,5.48240239]
[1751994774403,0.0419311,2614.2,2614.1,6.03240239]
[1751994774603,1e-08,2614.2,2614.1,16.03240239]
[1751994774808,0.0723173,2615.1,2615.0,3.82409177]
[1751994774980,0.0723173,2615.1,2615.0,11.60220095]
[1751994775375,0.0723173,2615.1,2614.5,0.7606]
[1751994775580,0.0723173,2615.1,2614.6,3.82458977]
[1751994775581,0.8945173,2615.1,2614.6,3.82458977]
[1751994775816,0.8945173,2615.1,2614.7,3.82442425]
[1751994775817,0.0723173,2615.1,2614.7,3.82442425]
[1751994775988,0.0723173,2615.1,2614.6,3.82454339]
[1751994776187,0.0723173,2615.1,2614.5,3.86301838]
[1751994776402,3.8963213,2615.1,2614.7,0.8108]
[1751994776633,0.0723173,2615.1,2614.7,0.8490453]
[1751994776816,3.82417383,2615.0,2614.7,0.8490453]
[1751994777134,3.82417383,2615.0,2614.7,0.8108]
[1751994777800,0.0723173,2615.1,2614.7,0.8108]
[1751994778194,3.89633091,2615.1,2614.7,1.37862098]
[1751994778631,3.82419205,2615.0,2614.7,0.8108]
[1751994778794,0.0723173,2615.1,2614.7,0.8108]
[1751994778998,3.89633401,2615.1,2614.7,0.8108]
[1751994779400,3.82449126,2614.8,2614.3,7.3708]
[1751994779596,3.82470105,2614.6,2614.1,4.61338272]
[1751994779801,3.82424124,2614.9,2614.2,7.05859089]
[1751994779995,0.0723173,2615.1,2614.5,3.82480445]
[1751994780226,0.0723173,2615.1,2614.2,7.02033827]
[1751994780429,3.8249694,2614.4,2614.3,0.03825115]
[1751994780643,3.89631644,2615.1,2614.1,3.82531891]
[1751994780862,3.89631644,2615.1,2615.0,3.82409177]
[1751994780863,0.0723173,2615.1,2615.0,3.82409177]
[1751994781025,0.0723173,2615.1,2615.0,4.96970095]
[1751994781428,0.0723173,2615.1,2615.0,5.55794186]
[1751994781651,1e-08,2615.1,2615.0,5.55794186]
[1751994781812,0.0773173,2616.0,2615.9,3.8227761]
[1751994782010,0.0773173,2616.0,2615.8,3.82290428]
[1751994782011,0.0773173,2616.0,2615.8,6.557]
[1751994782206,0.0773173,2616.0,2615.9,3.8227761]
[1751994782406,0.0773173,2616.0,2615.7,0.825]
[1751994782613,0.0773173,2616.0,2615.8,0.03822922]
[1751994782962,0.19994164,2617.8,2617.6,3.82029339]
[1751994783265,0.19994164,2617.8,2616.0,4.32262996]
[1751994783266,0.44194057,2618.4,2617.3,0.6532]
[1751994783267,0.7691,2618.2,2617.3,0.6532]
[1751994783750,0.8414173,2618.6,2617.6,3.82029339]
[1751994783920,0.8414173,2618.6,2617.6,3.85849632]
[1751994784241,0.0723173,2618.6,2617.6,5.21139632]
[1751994784434,0.00614103,2619.0,2617.6,5.21139632]
[1751994784435,0.00614103,2619.0,2617.7,0.55]
[1751994784642,0.00614103,2619.0,2617.9,0.55]
[1751994784643,0.0858272,2618.1,2617.9,0.55]
[1751994784840,0.0858272,2618.1,2618.0,4.0101097]
[1751994785011,0.0858272,2618.1,2618.0,4.8130097]
[1751994785217,0.0858272,2618.1,2618.0,4.85120679]
[1751994785452,0.0969362,2618.1,2618.0,5.33043241]
[1751994785644,0.0969362,2618.1,2618.0,5.88043241]
[1751994785813,0.0969362,2618.1,2618.0,1.03149709]
[1751994786314,0.0969362,2618.1,2618.0,11.9170097]
[1751994787413,0.0969362,2618.1,2618.0,0.8029]
[1751994787618,0.0969362,2618.1,2617.7,0.03820147]
[1751994788160,0.0969362,2618.1,2617.9,3.81984203]
[1751994788360,0.0969362,2618.1,2618.0,6.58919709]
[1751994788515,0.0969362,2618.1,2617.6,4.58733247]
[1751994788516,0.0969362,2618.1,2617.7,0.03820147]
[1751994788850,0.0969362,2618.1,2617.8,6.55]
[1751994789149,0.0969362,2618.1,2617.8,0.03820001]
[1751994790421,0.0969362,2618.1,2617.7,10.37010917]
[1751994790422,0.0969362,2618.1,2617.9,0.03819855]
[1751994790624,0.0969362,2618.1,2617.9,3.85805207]
[1751994790850,0.0969362,2618.1,2618.0,3.8197097]
[1751994791041,0.0969362,2618.1,2617.9,3.85795523]
[1751994791239,0.0969362,2618.1,2618.0,3.8197097]
[1751994791641,0.0969362,2618.1,2618.0,4.58749735]
[1751994791845,0.0969362,2618.1,2618.0,11.13549735]
[1751994792922,0.0969362,2618.1,2618.0,11.68549735]
[1751994793263,0.0969362,2618.1,2618.0,22.50499735]
[1751994793966,0.8128,2621.0,2618.6,30.0]
[1751994794260,0.8128,2621.0,2618.5,10.55]
[1751994794261,0.8128,2621.0,2619.9,4.63403957]
[1751994794461,3.81583801,2620.7,2619.9,4.63403957]
[1751994794623,4.62820353,2621.0,2619.9,11.21820896]
[1751994794829,0.8128,2621.0,2619.9,11.18003957]
[1751994795276,0.3206533,2621.1,2620.1,3.81664821]
[1751994795428,3.81541978,2621.0,2620.1,3.81664821]
[1751994795627,3.81549097,2620.9,2620.1,3.81664821]
[1751994795871,0.3206533,2621.1,2620.1,10.40081469]
[1751994796063,0.3206533,2621.1,2620.1,11.86611812]
[1751994796354,0.8193,2620.8,2620.1,6.546]
[1751994796536,3.81624143,2620.4,2620.1,6.546]
[1751994796746,3.81613475,2620.5,2620.1,6.546]
[1751994796946,0.8193,2620.8,2620.1,10.36264821]
[1751994797150,0.3206533,2621.1,2620.1,10.36264821]
[1751994797475,0.3206533,2621.1,2621.0,0.7534]
[1751994797678,0.3206533,2621.1,2621.0,11.30313765]
[1751994797850,0.3206533,2621.1,2621.0,12.43345141]
[1751994798174,0.3206533,2621.1,2621.0,11.30313765]
[1751994798580,0.0008,2622.1,2621.0,11.30313765]
[1751994798582,4.56278281,2623.6,2621.3,4.036]
[1751994798780,5.6799994,2624.0,2621.1,9.093039]
[1751994798781,0.0418181,2623.2,2621.5,0.6532]
[1751994799071,0.0418181,2623.2,2621.6,6.608]
[1751994799290,3.85405333,2623.2,2622.3,3.81334667]
[1751994799598,0.0418181,2623.2,2622.4,6.648133]
[1751994799788,0.0418181,2623.2,2621.9,0.6532]
[1751994799789,3.81228317,2623.1,2622.5,6.703]
[1751994799939,3.81316894,2622.5,2622.0,0.03813882]
[1751994800139,0.38541013,2623.0,2621.9,0.6532]
[1751994800373,3.81355525,2622.3,2622.0,6.704]
[1751994800571,3.81343669,2622.4,2622.0,6.704]
[1751994800789,10.8191,2623.0,2621.5,0.7838]
[1751994800945,0.0418181,2623.2,2620.5,11.56492027]
[1751994800946,0.8659181,2623.2,2621.6,6.702]
[1751994801141,0.8659181,2623.2,2621.6,10.51637831]
[1751994801341,0.8659181,2623.2,2621.6,7.75363783]
[1751994801643,0.8659181,2623.2,2621.8,4.63457346]
[1751994801844,3.81275256,2622.8,2621.9,0.03814027]
[1751994802082,3.81357999,2622.3,2621.8,0.8204]
[1751994802299,7.74894311,2623.0,2621.9,0.03814027]
[1751994802587,4.63148535,2622.1,2621.0,0.7735]
[1751994802898,3.81418692,2621.8,2621.2,3.81494573]
[1751994803055,3.81398297,2622.0,2621.3,10.56981802]
[1751994803256,0.8177,2622.1,2621.5,3.81460067]
[1751994803476,3.81402631,2622.0,2621.6,0.03814464]
[1751994803657,3.81402631,2622.0,2621.3,10.56983898]
[1751994803981,0.0418181,2623.2,2621.5,3.81460995]
[1751994804196,3.81242851,2623.0,2621.7,3.81420408]
[1751994804399,3.81242851,2623.0,2621.7,3.81420738]
[1751994804400,3.81340408,2622.4,2621.7,3.81420738]
[1751994804611,3.8128646,2622.7,2620.7,0.7601]
[1751994804895,3.81426835,2621.8,2621.0,3.81530978]
[1751994805102,3.81426835,2621.8,2620.8,6.756]
[1751994805103,3.81315538,2622.5,2620.9,3.81548323]
[1751994805324,3.81391217,2622.0,2621.4,3.81466506]
[1751994805456,3.81399122,2622.0,2621.5,0.03814609]
[1751994805660,3.81399122,2622.0,2621.1,6.753]
[1751994805661,0.8224,2622.6,2621.1,10.56808217]
[1751994805903,3.81352676,2622.3,2621.2,0.03815046]
[1751994806126,0.8224,2622.6,2621.4,0.8259]
[1751994806264,0.8224,2622.6,2621.5,0.55]
[1751994806612,0.8224,2622.6,2621.9,3.81391069]
[1751994806613,3.81318375,2622.5,2621.9,3.81391069]
[1751994807120,0.8224,2622.6,2622.1,3.81365196]
[1751994807277,0.8246,2623.0,2622.2,0.03813591]
[1751994807477,0.8246,2623.0,2621.6,6.754]
[1751994807678,0.8246,2623.0,2621.4,1.3759]
[1751994807679,3.8137417,2622.1,2621.4,0.8259]
[1751994807927,3.8137417,2622.1,2621.1,0.8259]
[1751994807928,3.81398467,2622.0,2621.1,0.8259]
[1751994808111,3.81411812,2621.9,2621.3,3.81480938]
[1751994808329,3.81411812,2621.9,2621.4,0.03814755]
[1751994808478,0.8246,2622.2,2621.1,0.8259]
[1751994808479,4.63820337,2622.2,2621.1,0.8259]
[1751994808687,3.81388398,2622.0,2621.4,3.81467705]
[1751994809007,3.81387024,2622.1,2621.9,0.1904]
[1751994809206,3.81388253,2622.0,2621.9,0.1904]
[1751994809395,3.81424956,2621.8,2621.7,0.1904]
[1751994809806,3.814104,2621.9,2621.7,0.1904]
[1751994810103,3.81380858,2622.1,2621.7,0.1904]
[1751994810313,4.63821874,2622.2,2621.9,0.1904]
[1751994810501,3.81383611,2622.1,2621.9,0.1904]
[1751994810697,3.81377866,2622.1,2621.9,0.1904]
[1751994810916,4.63827349,2622.2,2621.9,0.1904]
[1751994811114,3.81375727,2622.1,2621.9,0.1904]
[1751994811620,0.804,2622.8,2622.3,3.81334776]
[1751994811835,0.804,2622.8,2622.4,0.038133]
[1751994812220,4.61673463,2622.8,2622.4,0.038133]
[1751994812422,3.81312445,2622.6,2622.0,3.81385282]
[1751994812744,3.8128646,2622.7,2621.7,3.81424439]
[1751994812899,0.7933,2622.1,2621.2,0.7871]
[1751994813101,0.7933,2622.1,2621.3,0.33954294]
[1751994813102,3.81457427,2621.6,2621.3,0.33954294]
[1751994813348,10.0,2622.0,2620.9,1.67174369]
[1751994813634,3.81468506,2621.5,2621.0,1.30634742]
[1751994813840,10.0,2622.0,2620.8,0.7871]
[1751994813841,3.81402799,2621.9,2620.8,0.7871]